fUST/lending_fUST_20250403
["ID","MTS","AMOUNT","RATE_DAILY","PERIOD"]
[357045167,1743625837366,-581.45,0.00018596,2]
[357045168,1743625837375,-500.0,0.00018596,2]
[357045169,1743625837386,-256.46288834,0.00018599,2]
[357045170,1743625837400,-543.69,0.00018599,2]
[357045171,1743625837410,-431.47757021,0.00018599,2]
[357045172,1743625837420,-500.0,0.00018599,2]
[357045173,1743625837430,-583.2,0.00018599,2]
[357045174,1743625837439,-259.758,0.00018603,2]
[357045175,1743625837449,-387.30068561,0.00018603,2]
[357045176,1743625837462,-125.53162562,0.00018603,2]
[357045177,1743625837472,-221.84237438,0.00018603,2]
[357045178,1743625837483,-95.37952247,0.00018603,2]
[357045179,1743625837493,-5296.63912513,0.00018604,2]
[357045180,1743625837505,-24380.8421381,0.00018604,2]
[357045181,1743625837518,-19285.0450247,0.00018604,2]
[357045182,1743625837530,-4075.2089633,0.00018604,2]
[357045183,1743625837542,-1610.20268828,0.00018604,2]
[357045184,1743625837554,-14407.83051639,0.00018604,2]
[357045185,1743625837569,-215192.69027823,0.00018604,2]
[357045186,1743625837580,-423.53179261,0.00018604,2]
[357045187,1743625837592,-273.44970584,0.00018604,2]
[357045188,1743625837605,-876.12,0.00018604,2]
[357045189,1743625837616,-4436.3009596,0.00018604,2]
[357045209,1743625838377,-270.13541551,0.00018592,2]
[357045211,1743625838389,-565.86957247,0.00018592,2]
[357045213,1743625838403,-8042.89860555,0.00018604,2]
[357045287,1743625844223,-998.40178327,0.00018604,2]
[357045288,1743625844235,-398.31560005,0.00018604,2]
[357045289,1743625844255,-2758.87538248,0.00018604,2]
[357045309,1743625846511,-58863.75115782,0.00018604,2]
[357045310,1743625846522,-500.0,0.00018609,2]
[357045311,1743625846532,-500.0,0.00018673,2]
[357045312,1743625846543,-500.0,0.00018673,2]
[357045313,1743625846552,-500.0,0.00018673,2]
[357045314,1743625846563,-500.0,0.00018673,2]
[357045315,1743625846573,-500.0,0.00018673,2]
[357045316,1743625846582,-500.0,0.00018673,2]
[357045317,1743625846593,-500.0,0.00018673,2]
[357045318,1743625846602,-500.0,0.00018673,2]
[357045319,1743625846612,-500.0,0.00018673,2]
[357045320,1743625846621,-500.0,0.00018673,2]
[357045321,1743625846631,-379.90654268,0.00018673,2]
[357045322,1743625846640,-500.0,0.00018675,2]
[357045323,1743625846652,-500.0,0.00018675,2]
[357045324,1743625846662,-500.0,0.00018675,2]
[357045325,1743625846672,-500.0,0.00018675,2]
[357045326,1743625846683,-500.0,0.00018675,2]
[357045327,1743625846692,-500.0,0.00018675,2]
[357045328,1743625846702,-500.0,0.00018675,2]
[357045329,1743625846711,-500.0,0.00018868,2]
[357045330,1743625846721,-500.0,0.00018868,2]
[357045331,1743625846731,-500.0,0.00018869,2]
[357045332,1743625846741,-587.25,0.0001887,2]
[357045333,1743625846750,-500.0,0.0001887,2]
[357045334,1743625846760,-164.08008566,0.00019142,2]
[357045335,1743625846770,-500.0,0.00019142,2]
[357045336,1743625846779,-500.0,0.00019143,2]
[357045337,1743625846789,-500.0,0.00019416,2]
[357045338,1743625846799,-500.0,0.00019417,2]
[357045339,1743625846811,-500.0,0.0001969,2]
[357045340,1743625846821,-500.0,0.00019691,2]
[357045341,1743625846830,-313.69235,0.00019814,2]
[357045342,1743625846840,-1008.33043826,0.000199,2]
[357045343,1743625846849,-207.4,0.00019962,2]
[357045344,1743625846859,-500.0,0.00019964,2]
[357045345,1743625846868,-500.0,0.00019965,2]
[357045346,1743625846878,-500.0,0.00020238,2]
[357045347,1743625846887,-500.0,0.00020239,2]
[357045348,1743625846897,-1008.330438,0.00020452,2]
[357045349,1743625846910,-870.426049,0.00020495,2]
[357045350,1743625846920,-456.25,0.00020512,2]
[357045351,1743625846930,-500.0,0.00020513,2]
[357045352,1743625846939,-500.0,0.00020787,2]
[357045353,1743625846948,-2259.0,0.0002094,2]
[357045354,1743625846958,-1008.330438,0.00021003,3]
[357045355,1743625846968,-500.0,0.00021061,2]
[357045356,1743625846977,-215.0738,0.00021331,2]
[357045357,1743625846987,-257.09,0.00021335,2]
[357045358,1743625846996,-157.188507,0.00021386,14]
[357045359,1743625847006,-157.188507,0.00021386,14]
[357045360,1743625847015,-1008.330438,0.00021555,3]
[357045361,1743625847025,-14252.49458286,0.0002189,2]
[357045362,1743625847034,-157.188507,0.00021917,6]
[357045363,1743625847044,-347.3952116,0.00022,2]
[357045364,1743625847053,-163.79535546,0.00022,2]
[357045365,1743625847063,-2600.0,0.00022072,2]
[357045366,1743625847073,-1008.330438,0.00022107,3]
[357045367,1743625847082,-157.188507,0.00022165,2]
[357045368,1743625847092,-157.188507,0.00022199,6]
[357045369,1743625847102,-264.5817856,0.0002231,2]
[357045370,1743625847111,-355.9410457,0.00022438,2]
[357045371,1743625847121,-157.188507,0.00022482,6]
[357045372,1743625847132,-870.426049,0.00022494,2]
[357045373,1743625847142,-156.4213755,0.00022575,2]
[357045374,1743625847157,-159.2706578,0.00022575,2]
[357045375,1743625847167,-153.0,0.00022575,2]
[357045376,1743625847176,-156.4213755,0.00022575,2]
[357045377,1743625847186,-156.4213755,0.00022575,2]
[357045378,1743625847196,-153.0,0.00022575,2]
[357045379,1743625847206,-156.2248671,0.00022575,2]
[357045380,1743625847215,-153.0,0.00022575,2]
[357045381,1743625847226,-1008.330438,0.00022659,4]
[357045382,1743625847236,-223.0315306,0.000227,2]
[357045383,1743625847247,-157.188507,0.0002279,15]
[357045384,1743625847258,-1455.51286607,0.00022799,2]
[357045385,1743625847267,-243.2927862,0.00022849,2]
[357045386,1743625847277,-153.0,0.00022849,2]
[357045387,1743625847287,-153.0,0.00022849,2]
[357045388,1743625847297,-153.0,0.00022849,2]
[357045389,1743625847307,-157.188507,0.00022935,15]
[357045390,1743625847317,-500.0,0.00022973,2]
[357045391,1743625847327,-500.0,0.00022973,2]
[357045392,1743625847336,-500.0,0.00022973,2]
[357045393,1743625847346,-508.62263203,0.00022973,2]
[357045394,1743625847355,-500.0,0.00022973,2]
[357045395,1743625847366,-500.0,0.00022973,2]
[357045396,1743625847376,-510.02151464,0.00022973,2]
[357045397,1743625847385,-500.0,0.00022973,2]
[357045398,1743625847396,-500.0,0.00022973,2]
[357045399,1743625847412,-500.0,0.00022973,2]
[357045400,1743625847421,-500.0,0.00022973,2]
[357045401,1743625847431,-157.188507,0.00022975,3]
[357045402,1743625847440,-54428.43800121,0.00023,2]
[357045403,1743625847454,-671.57500007,0.00023,2]
[357045404,1743625847467,-6777.0365244,0.00023,2]
[357045405,1743625847476,-164512.28882164,0.00023,2]
[357045427,1743626086544,152.37,0.000249,31]
[357045428,1743626086588,152.37,0.000249,31]
[357045429,1743626086629,152.37,0.000249,31]
[357045430,1743626086671,152.37,0.000249,31]
[357045431,1743626086710,152.37,0.000249,31]
[357045432,1743626086750,152.37,0.000249,31]
[357045433,1743626086791,152.37,0.000249,31]
[357045453,1743626688046,152.44,0.000249,31]
[357045454,1743626688105,152.44,0.000249,31]
[357045455,1743626688161,152.44,0.000249,31]
[357045456,1743626688223,152.44,0.000249,31]
[357045457,1743626688280,152.44,0.000249,31]
[357045458,1743626688343,152.44,0.000249,31]
[357045459,1743626688399,152.44,0.000249,31]
[357045461,1743626820929,173.015389,0.00013699,2]
[357045520,1743627032654,-231.535838,0.00017489,2]
[357045521,1743627032664,-300.0,0.00017596,2]
[357045522,1743627032674,-500.0,0.00017597,2]
[357045523,1743627032684,-500.0,0.00017597,2]
[357045524,1743627032694,-266.96507496,0.00017597,2]
[357045525,1743627032706,-233.03492504,0.00017597,2]
[357045526,1743627032716,-500.0,0.00017597,2]
[357045527,1743627032727,-500.0,0.00017597,2]
[357045528,1743627032736,-173.19698523,0.00017597,2]
[357045549,1743627038394,-326.80301477,0.00017597,2]
[357045550,1743627038404,-500.0,0.00017597,2]
[357045551,1743627038414,-500.0,0.00017597,2]
[357045552,1743627038423,-327.43267673,0.00017597,2]
[357045553,1743627038432,-500.0,0.00017597,2]
[357045554,1743627038441,-500.0,0.00017597,2]
[357045555,1743627038451,-500.0,0.00017597,2]
[357045556,1743627038460,-500.0,0.00017597,2]
[357045557,1743627038470,-500.0,0.00017597,2]
[357045558,1743627038479,-500.0,0.00017597,2]
[357045559,1743627038489,-500.0,0.00017597,2]
[357045560,1743627038498,-500.0,0.00017597,2]
[357045561,1743627038506,-265.13272836,0.00017597,2]
[357045562,1743627038515,-500.0,0.00017597,2]
[357045563,1743627038524,-500.0,0.00017597,2]
[357045564,1743627038534,-500.0,0.00017597,2]
[357045565,1743627038544,-500.0,0.00017597,2]
[357045566,1743627038554,-500.0,0.00017597,2]
[357045567,1743627038563,-500.0,0.00017598,2]
[357045568,1743627038573,-460.90358826,0.00017598,2]
[357045569,1743627038583,-500.0,0.00017598,2]
[357045570,1743627038593,-386.41754121,0.00017598,2]
[357045571,1743627038603,-313.58985371,0.00017598,2]
[357045572,1743627038613,-500.0,0.00017598,2]
[357045573,1743627038623,-448.3,0.00017598,2]
[357045574,1743627038632,-500.0,0.00017598,2]
[357045575,1743627038644,-5060.23192415,0.00017598,2]
[357045576,1743627038655,-1428.87134986,0.00017598,2]
[357045577,1743627038666,-1744.71248235,0.00017598,2]
[357045578,1743627038677,-3196.67910751,0.00017598,2]
[357045579,1743627038688,-2448.31875038,0.00017598,2]
[357045580,1743627038700,-2813.31343385,0.00017598,2]
[357045599,1743627045594,-500.0,0.00017598,2]
[357045600,1743627045605,-433.69821677,0.00017598,2]
[357045601,1743627045655,-264.66466137,0.00017598,2]
[357045603,1743627045667,-1127.82645889,0.00017598,2]
[357045612,1743627046066,-469.6751332,0.00017598,2]
[357045631,1743627047542,-5912.00848167,0.00017598,2]
[357045632,1743627047551,-544.01628066,0.0001807,2]
[357045633,1743627047561,-500.0,0.00018111,2]
[357045634,1743627047571,-500.0,0.00018111,2]
[357045635,1743627047580,-500.0,0.0001817,2]
[357045636,1743627047590,-500.0,0.0001817,2]
[357045637,1743627047599,-500.0,0.0001817,2]
[357045638,1743627047609,-500.0,0.0001817,2]
[357045639,1743627047619,-32.79523768,0.00018233,2]
[357045640,1743627047631,-467.20476232,0.00018233,2]
[357045641,1743627047641,-160.0,0.0001828,2]
[357045642,1743627047652,-500.0,0.00018314,2]
[357045643,1743627047661,-200.0,0.00018493,2]
[357045644,1743627047671,-200.0,0.00018493,2]
[357045645,1743627047681,-13769.11852678,0.00018504,2]
[357045646,1743627047693,-8540.0,0.00018504,2]
[357045660,1743627422416,3012.45,0.00025,30]
[357045685,1743627937517,159.247357,0.00013699,2]
[357045766,1743628232854,-160.0,0.00018497,2]
[357045767,1743628232865,-359.30299373,0.00018502,2]
[357045768,1743628232875,-17.91296401,0.00018503,2]
[357045769,1743628232887,-302.1323033,0.00018503,2]
[357045781,1743628238585,-318.92122086,0.00018503,2]
[357045782,1743628238595,-500.0,0.00018503,2]
[357045784,1743628238606,-419.02799708,0.00018566,2]
[357045786,1743628238617,-184.96,0.00018777,2]
[357045787,1743628238627,-500.0,0.000193,2]
[357045789,1743628238636,-500.0,0.000193,2]
[357045791,1743628238646,-500.0,0.000193,2]
[357045792,1743628238655,-500.0,0.000193,2]
[357045794,1743628238665,-500.0,0.000193,2]
[357045796,1743628238675,-224.73687157,0.000193,2]
[357045822,1743628241083,-275.26312843,0.000193,2]
[357045823,1743628241093,-500.0,0.000193,2]
[357045824,1743628241102,-245.55625774,0.000193,2]
[357045825,1743628241156,-254.44374226,0.000193,2]
[357045826,1743628241167,-500.0,0.000193,2]
[357045827,1743628241177,-222.58168598,0.000193,2]
[357045840,1743628245504,-217.35,0.00018503,2]
[357045841,1743628245515,-277.41831402,0.000193,2]
[357045842,1743628245525,-611.32624743,0.00019384,2]
[357045843,1743628245535,-837.01814929,0.000199,2]
[357045844,1743628245545,-222.05532779,0.00019999,2]
[357045845,1743628245555,-500.0,0.00019999,2]
[357045846,1743628245565,-555.50404936,0.00019999,2]
[357045847,1743628245574,-8826.84961937,0.00019999,3]
[357045866,1743628246698,-2770.71511623,0.00019999,3]
[357045867,1743628246711,-23766.95689798,0.00019999,3]
[357045868,1743628246818,-463.3,0.00019999,3]
[357046013,1743629302109,879.00212668,0.000125,2]
[357046112,1743629431843,-340.297,0.0001803,2]
[357046125,1743629431960,-582.44320739,0.0001803,2]
[357046133,1743629432022,-7583.89907881,0.0001803,2]
[357046135,1743629432032,-278.76902169,0.00018398,2]
[357046137,1743629432041,-278.7690217,0.00018398,2]
[357046138,1743629432051,-270.271609,0.00018494,2]
[357046140,1743629432060,-300.0,0.00018494,2]
[357046142,1743629432070,-395.40466398,0.00018495,2]
[357046144,1743629432079,-419.02799708,0.00018495,2]
[357046146,1743629432088,-160.0,0.00018496,2]
[357046148,1743629432097,-962.45925659,0.00019286,2]
[357046150,1743629432107,-500.0,0.00019385,2]
[357046152,1743629432116,-552.26226718,0.00019385,2]
[357046155,1743629432126,-500.0,0.00019385,2]
[357046156,1743629432135,-500.0,0.00019385,2]
[357046158,1743629432145,-500.0,0.00019385,2]
[357046160,1743629432154,-500.0,0.00019385,2]
[357046163,1743629432164,-500.0,0.00019385,2]
[357046164,1743629432173,-500.0,0.00019385,2]
[357046166,1743629432182,-368.58061702,0.00019385,2]
[357046168,1743629432191,-500.0,0.00019386,2]
[357046170,1743629432199,-267.14457728,0.00019386,2]
[357046698,1743629438074,-232.85542272,0.00019386,2]
[357046700,1743629438084,-500.0,0.00019386,2]
[357046702,1743629438094,-500.0,0.00019386,2]
[357046705,1743629438103,-500.0,0.00019386,2]
[357046707,1743629438114,-500.0,0.00019386,2]
[357046709,1743629438123,-500.0,0.00019386,2]
[357046711,1743629438132,-500.0,0.00019386,2]
[357046713,1743629438142,-179.45856063,0.00019386,2]
[357046915,1743629440166,-320.54143937,0.00019386,2]
[357046917,1743629440176,-500.0,0.00019386,2]
[357046919,1743629440186,-500.0,0.00019386,2]
[357046921,1743629440195,-500.0,0.00019386,2]
[357046923,1743629440205,-500.0,0.00019386,2]
[357046925,1743629440214,-500.0,0.00019386,2]
[357046927,1743629440224,-500.0,0.00019386,2]
[357046929,1743629440233,-500.0,0.00019386,2]
[357046931,1743629440242,-500.0,0.00019386,2]
[357046933,1743629440252,-500.0,0.00019386,2]
[357046935,1743629440261,-500.0,0.00019386,2]
[357046937,1743629440270,-500.0,0.00019386,2]
[357046939,1743629440279,-500.0,0.00019386,2]
[357046941,1743629440288,-500.0,0.00019386,2]
[357046943,1743629440297,-500.0,0.00019386,2]
[357046945,1743629440307,-500.0,0.00019386,2]
[357046947,1743629440316,-500.0,0.00019386,2]
[357046949,1743629440326,-500.0,0.00019386,2]
[357046951,1743629440335,-500.0,0.00019386,2]
[357046953,1743629440344,-500.0,0.00019386,2]
[357046955,1743629440354,-500.0,0.00019386,2]
[357046957,1743629440363,-500.0,0.00019386,2]
[357046959,1743629440372,-500.0,0.00019386,2]
[357046961,1743629440381,-1000.0,0.00019386,7]
[357046963,1743629440390,-500.0,0.00019386,2]
[357046965,1743629440399,-500.0,0.00019386,2]
[357046967,1743629440409,-500.0,0.00019386,2]
[357046969,1743629440418,-500.0,0.00019386,2]
[357046971,1743629440427,-500.0,0.00019386,2]
[357046973,1743629440436,-500.0,0.00019386,2]
[357046975,1743629440445,-500.0,0.00019386,2]
[357046977,1743629440455,-635.31342085,0.00019386,2]
[357046979,1743629440465,-531.06242635,0.00019386,2]
[357046981,1743629440474,-226.79,0.00019386,2]
[357046983,1743629440483,-500.0,0.00019386,2]
[357046985,1743629440492,-500.0,0.00019386,2]
[357046987,1743629440502,-500.0,0.00019386,2]
[357046990,1743629440516,-500.0,0.00019386,2]
[357046992,1743629440525,-500.0,0.00019386,2]
[357046994,1743629440535,-500.0,0.00019386,2]
[357046996,1743629440544,-500.0,0.00019386,2]
[357046998,1743629440553,-581.8075558,0.00019386,2]
[357046999,1743629440563,-500.0,0.00019386,2]
[357047001,1743629440572,-516.25,0.00019386,2]
[357047002,1743629440581,-500.0,0.00019386,2]
[357047004,1743629440591,-171.39322361,0.00019559,2]
[357047005,1743629440600,-616.69,0.0001965,3]
[357047007,1743629440609,-470.64,0.0001965,3]
[357047008,1743629440619,-235.32,0.0001965,3]
[357047010,1743629440630,-705.98,0.0001965,3]
[357047012,1743629440642,-14334.90742823,0.00019658,3]
[357047141,1743629444094,-380.18376945,0.00019386,2]
[357047142,1743629444104,-161.11,0.00019386,2]
[357047143,1743629444114,-500.0,0.00019386,2]
[357047144,1743629444123,-23771.92626697,0.00019658,3]
[357047145,1743629444133,-155.43872945,0.00019658,2]
[357047147,1743629444142,-1001.26724194,0.00019659,2]
[357047149,1743629444151,-6693.05893005,0.00019659,3]
[357047151,1743629444161,-160.0,0.00019659,3]
[357047153,1743629444170,-500.0,0.0001966,2]
[357047155,1743629444179,-500.0,0.0001966,2]
[357047157,1743629444188,-500.0,0.0001966,2]
[357047159,1743629444198,-323.05,0.0001966,2]
[357047161,1743629444207,-500.0,0.0001966,2]
[357047163,1743629444217,-500.0,0.0001966,2]
[357047165,1743629444226,-500.0,0.0001966,2]
[357047167,1743629444235,-500.0,0.0001966,2]
[357047169,1743629444244,-630.89,0.0001966,2]
[357047171,1743629444254,-283.96,0.0001966,2]
[357047173,1743629444263,-500.0,0.0001966,2]
[357047175,1743629444272,-647.56358826,0.0001966,2]
[357047177,1743629444282,-1000.0,0.0001966,7]
[357047179,1743629444291,-613.74115801,0.0001966,2]
[357047181,1743629444300,-501.58560341,0.0001966,2]
[357047183,1743629444311,-475.4,0.0001966,2]
[357047185,1743629444322,-500.0,0.0001966,2]
[357047187,1743629444332,-439.82471247,0.0001966,2]
[357047216,1743629446036,-500.0,0.00019386,2]
[357047217,1743629446047,-500.0,0.00019386,2]
[357047218,1743629446058,-60.17528753,0.0001966,2]
[357047219,1743629446068,-500.0,0.0001966,2]
[357047220,1743629446078,-500.0,0.0001966,2]
[357047221,1743629446088,-500.0,0.0001966,2]
[357047222,1743629446099,-582.99,0.0001966,2]
[357047223,1743629446109,-500.0,0.0001966,2]
[357047224,1743629446119,-500.0,0.0001966,2]
[357047225,1743629446131,-500.0,0.0001966,2]
[357047226,1743629446141,-171.3932236,0.000198,2]
[357047227,1743629446152,-333.03990994,0.00019873,2]
[357047228,1743629446161,-500.0,0.00019873,2]
[357047229,1743629446173,-500.0,0.00019873,2]
[357047230,1743629446183,-500.0,0.00019873,2]
[357047231,1743629446194,-500.0,0.00019873,2]
[357047232,1743629446203,-9809.50157892,0.00019899,2]
[357047233,1743629446216,-16937.8,0.00019899,2]
[357047238,1743629472115,173.015388,0.00013699,2]
[357047260,1743630549504,-162.5940468,0.00018338,2]
[357047261,1743630549536,-1053.11500525,0.00019163,2]
[357047262,1743630549569,-300.0,0.00019258,2]
[357047263,1743630549604,-500.0,0.00019259,2]
[357047264,1743630549635,-238.72739707,0.00019259,2]
[357047265,1743630549667,-500.0,0.00019259,2]
[357047266,1743630549697,-278.90944049,0.00019259,2]
[357047267,1743630549728,-419.68221275,0.00019259,2]
[357047268,1743630549763,-500.0,0.00019259,2]
[357047269,1743630549797,-500.0,0.00019259,2]
[357047270,1743630549829,-500.0,0.00019259,2]
[357047271,1743630549863,-500.0,0.00019259,2]
[357047272,1743630549896,-500.0,0.00019259,2]
[357047273,1743630549928,-204.24930854,0.00019259,2]
[357047274,1743630549961,-500.0,0.00019259,2]
[357047275,1743630549994,-500.0,0.00019259,2]
[357047276,1743630550030,-500.0,0.00019259,2]
[357047277,1743630550075,-500.0,0.00019259,2]
[357047278,1743630550117,-500.0,0.00019259,2]
[357047279,1743630550163,-500.0,0.00019259,2]
[357047280,1743630550206,-500.0,0.00019259,2]
[357047281,1743630550248,-500.0,0.00019259,2]
[357047282,1743630550292,-500.0,0.00019259,2]
[357047283,1743630550335,-500.0,0.00019259,2]
[357047284,1743630550378,-500.0,0.00019259,2]
[357047285,1743630550419,-500.0,0.00019259,2]
[357047286,1743630550459,-500.0,0.00019259,2]
[357047287,1743630550501,-500.0,0.00019259,2]
[357047288,1743630550543,-500.0,0.00019259,2]
[357047289,1743630550589,-500.0,0.00019259,2]
[357047290,1743630550631,-500.0,0.00019259,2]
[357047291,1743630550670,-500.0,0.00019259,2]
[357047292,1743630550712,-500.0,0.00019259,2]
[357047293,1743630550751,-500.0,0.00019259,2]
[357047294,1743630550790,-500.0,0.00019259,2]
[357047295,1743630550831,-500.0,0.00019259,2]
[357047296,1743630550868,-500.0,0.00019259,2]
[357047297,1743630550906,-500.0,0.00019259,2]
[357047298,1743630550943,-500.0,0.00019259,2]
[357047299,1743630550982,-500.0,0.00019259,2]
[357047300,1743630551020,-500.0,0.00019259,2]
[357047301,1743630551063,-500.0,0.00019259,2]
[357047302,1743630551103,-500.0,0.00019259,2]
[357047303,1743630551143,-500.0,0.00019259,2]
[357047304,1743630551192,-500.0,0.00019259,2]
[357047305,1743630551241,-500.0,0.00019259,2]
[357047306,1743630551281,-238.57402915,0.00019259,2]
[357047307,1743630551323,-500.0,0.00019259,2]
[357047308,1743630551364,-500.0,0.00019259,2]
[357047309,1743630551406,-500.0,0.00019259,2]
[357047310,1743630551443,-500.0,0.00019259,2]
[357047311,1743630551655,-500.0,0.00019259,2]
[357047312,1743630551690,-300.00000001,0.00019259,2]
[357047313,1743630551721,-12458.93820146,0.0001926,2]
[357047314,1743630551754,-500.0,0.00019266,2]
[357047315,1743630551788,-500.0,0.00019266,2]
[357047316,1743630551819,-500.0,0.00019266,2]
[357047317,1743630551850,-500.0,0.0001927,2]
[357047318,1743630551881,-500.0,0.0001927,2]
[357047319,1743630551913,-500.0,0.0001927,2]
[357047320,1743630551943,-500.0,0.0001927,2]
[357047321,1743630551973,-500.0,0.0001927,2]
[357047322,1743630552006,-500.0,0.0001927,2]
[357047323,1743630552038,-500.0,0.0001927,2]
[357047324,1743630552070,-500.0,0.0001927,2]
[357047325,1743630552101,-950.96066894,0.0001927,2]
[357047326,1743630552132,-500.0,0.0001927,2]
[357047327,1743630552164,-500.0,0.0001927,2]
[357047328,1743630552196,-500.0,0.0001927,2]
[357047329,1743630552228,-500.0,0.0001927,2]
[357047330,1743630552259,-500.0,0.0001927,2]
[357047331,1743630552290,-500.0,0.0001927,2]
[357047332,1743630552320,-500.0,0.0001927,2]
[357047333,1743630552353,-500.0,0.0001927,2]
[357047334,1743630552385,-337.32,0.0001927,2]
[357047335,1743630552416,-500.0,0.0001927,2]
[357047336,1743630552449,-500.0,0.0001927,2]
[357047337,1743630552481,-482.47,0.0001927,2]
[357047338,1743630552514,-500.0,0.0001927,2]
[357047339,1743630552545,-500.0,0.0001927,2]
[357047340,1743630552578,-500.0,0.0001927,2]
[357047341,1743630552610,-500.0,0.0001927,2]
[357047342,1743630552640,-500.0,0.0001927,2]
[357047343,1743630552673,-500.0,0.0001927,2]
[357047344,1743630552706,-214.34885126,0.0001927,2]
[357047345,1743630552738,-500.0,0.0001927,2]
[357047346,1743630552768,-151.0,0.0001927,2]
[357047347,1743630552799,-500.0,0.00019283,2]
[357047348,1743630552829,-223.02351841,0.00019286,2]
[357047349,1743630552859,-419.02799708,0.0001935,2]
[357047350,1743630552969,-565.86957247,0.00019353,2]
[357047351,1743630553001,-258.28426877,0.00019385,2]
[357047352,1743630553032,-286.94187821,0.00019386,2]
[357047353,1743630553063,-386.41754121,0.00019386,2]
[357047354,1743630553094,-500.0,0.00019386,2]
[357047355,1743630553127,-500.0,0.00019386,2]
[357047356,1743630553162,-500.0,0.00019386,2]
[357047357,1743630553193,-151.0,0.00019386,2]
[357047358,1743630553227,-151.0,0.00019386,2]
[357047359,1743630553256,-223.16623055,0.00019386,2]
[357047360,1743630553287,-500.0,0.00019386,2]
[357047361,1743630553317,-200.06,0.00019386,2]
[357047362,1743630553349,-500.0,0.00019386,2]
[357047363,1743630553381,-500.0,0.00019386,2]
[357047364,1743630553411,-151.0,0.00019386,2]
[357047365,1743630553443,-500.0,0.00019386,2]
[357047366,1743630553474,-354.81,0.00019386,2]
[357047367,1743630553504,-153.438206,0.00019386,2]
[357047368,1743630553535,-500.0,0.00019386,2]
[357047369,1743630553568,-500.0,0.00019386,2]
[357047370,1743630553599,-500.0,0.00019386,2]
[357047371,1743630553630,-500.0,0.00019386,2]
[357047372,1743630553661,-626.0155233,0.00019386,2]
[357047373,1743630553692,-298.29337725,0.00019386,2]
[357047374,1743630553722,-500.0,0.00019386,2]
[357047375,1743630553753,-500.0,0.00019386,2]
[357047376,1743630553784,-500.0,0.00019386,2]
[357047377,1743630553814,-151.0,0.00019386,2]
[357047378,1743630553846,-151.0,0.00019386,2]
[357047379,1743630553876,-151.0,0.00019386,2]
[357047380,1743630553907,-610.42,0.00019386,2]
[357047381,1743630553937,-188.886472,0.00019386,2]
[357047382,1743630553967,-152.049634,0.00019386,2]
[357047383,1743630553997,-500.0,0.00019386,2]
[357047384,1743630554028,-152.049634,0.00019386,2]
[357047385,1743630554061,-151.0,0.00019386,2]
[357047386,1743630554091,-151.0,0.00019386,2]
[357047387,1743630554122,-151.0,0.00019386,2]
[357047388,1743630554156,-500.0,0.00019386,2]
[357047389,1743630554186,-500.0,0.00019386,2]
[357047390,1743630554216,-158.829759,0.00019386,2]
[357047391,1743630554249,-451.94056389,0.00019386,2]
[357047392,1743630554281,-500.0,0.00019386,2]
[357047393,1743630554311,-191.496717,0.00019386,2]
[357047394,1743630554342,-151.0,0.00019386,2]
[357047395,1743630554372,-151.0,0.00019386,2]
[357047396,1743630554403,-500.0,0.00019386,2]